[Event "Titled Tuesday Blitz May 24 Late 2022"]
[White "Andreikin, Dmitry"]
[Black "Zhigalko, Sergei"]
[WhiteFideId "4158814"]
[BlackFideId "13502956"]
[WhiteElo "2736"]
[BlackElo "2662"]
[Result "0-1"]
[Round "08"]
[TimeControl "180+1"]
[Date "2022.05.24"]
[WhiteClock "0:00:17"]
[BlackClock "0:00:04"]

1. d4 {[%clk 0:03:00]}  Nf6 {[%clk 0:02:58]} 2. c4 {[%clk 0:03:01]}  e6 {[%clk 0:02:58]} 3. Nf3 {[%clk 0:03:01]}  b6 {[%clk 0:02:57]} 4. a3 {[%clk 0:03:01]}  Bb7 {[%clk 0:02:56]} 5. Nc3 {[%clk 0:03:01]}  d5 {[%clk 0:02:56]} 6. cxd5 {[%clk 0:03:01]}  Nxd5 {[%clk 0:02:57]} 7. e3 {[%clk 0:03:00]}  Be7 {[%clk 0:02:50]} 8. Bb5+ {[%clk 0:02:57]}  c6 {[%clk 0:02:47]} 9. Bd3 {[%clk 0:02:56]}  c5 {[%clk 0:02:46]} 10. e4 {[%clk 0:02:47]}  Nxc3 {[%clk 0:02:35]} 11. bxc3 {[%clk 0:02:48]}  O-O {[%clk 0:02:34]} 12. O-O {[%clk 0:02:47]}  Nd7 {[%clk 0:02:32]} 13. Qe2 {[%clk 0:02:45]}  Qc7 {[%clk 0:02:31]} 14. a4 {[%clk 0:02:41]}  Rfd8 {[%clk 0:02:30]} 15. h3 {[%clk 0:02:33]}  Rac8 {[%clk 0:02:29]} 16. Bb2 {[%clk 0:02:29]}  Nf6 {[%clk 0:02:27]} 17. Rfe1 {[%clk 0:02:28]}  Qf4 {[%clk 0:02:18]} 18. Ne5 {[%clk 0:02:21]}  Nd7 {[%clk 0:02:00]} 19. Bc1 {[%clk 0:02:07]}  Qh4 {[%clk 0:01:55]} 20. Nf3 {[%clk 0:02:02]}  Qh5 {[%clk 0:01:55]} 21. a5 {[%clk 0:01:55]}  cxd4 {[%clk 0:01:48]} 22. a6 {[%clk 0:01:48]}  Ba8 {[%clk 0:01:40]} 23. cxd4 {[%clk 0:01:48]}  Bb4 {[%clk 0:01:30]} 24. Bd2 {[%clk 0:01:16]}  Bxd2 {[%clk 0:01:28]} 25. Qxd2 {[%clk 0:01:17]}  Nf6 {[%clk 0:01:23]} 26. Qf4 {[%clk 0:01:13]}  h6 {[%clk 0:01:15]} 27. Rac1 {[%clk 0:01:05]}  Qa5 {[%clk 0:01:11]} 28. e5 {[%clk 0:01:01]}  Nd5 {[%clk 0:00:58]} 29. Qe4 {[%clk 0:01:01]}  g6 {[%clk 0:00:50]} 30. Qh4 {[%clk 0:00:55]}  Kg7 {[%clk 0:00:38]} 31. Be4 {[%clk 0:00:47]}  Qxa6 {[%clk 0:00:35]} 32. Nh2 {[%clk 0:00:33]}  g5 {[%clk 0:00:28]} 33. Qg3 {[%clk 0:00:31]}  Rxc1 {[%clk 0:00:22]} 34. Rxc1 {[%clk 0:00:30]}  Nf4 {[%clk 0:00:22]} 35. Re1 {[%clk 0:00:16]}  Bxe4 {[%clk 0:00:07]} 36. Rxe4 {[%clk 0:00:17]}  Rxd4 {[%clk 0:00:04]} 37. Re1 {[%clk 0:00:18]}  Ne2+ {[%clk 0:00:04]} 38. Rxe2 {[%clk 0:00:18]}  Rd1+ {[%clk 0:00:04]} 39. Nf1 {[%clk 0:00:17]}  Qxe2 {[%clk 0:00:04]} 0-1


[Site "https://www.chess.com"]

[Event "Titled Tuesday Blitz May 24 Late 2022"]
[White "Bonte, Andrei-Mihai"]
[Black "Krstulovic, Alex"]
[WhiteFideId "1210297"]
[BlackFideId "760056"]
[WhiteElo "2192"]
[BlackElo "2193"]
[Result "1/2-1/2"]
[Round "08"]
[TimeControl "180+1"]
[Date "2022.05.25"]
[WhiteClock "0:00:17"]
[BlackClock "0:00:06"]

1. d4 {[%clk 0:02:59]}  Nf6 {[%clk 0:02:46]} 2. c4 {[%clk 0:02:58]}  e6 {[%clk 0:02:46]} 3. Nf3 {[%clk 0:02:57]}  d5 {[%clk 0:02:45]} 4. Nc3 {[%clk 0:02:56]}  dxc4 {[%clk 0:02:45]} 5. e4 {[%clk 0:02:55]}  b5 {[%clk 0:02:46]} 6. e5 {[%clk 0:02:54]}  Nd5 {[%clk 0:02:42]} 7. Nxb5 {[%clk 0:02:54]}  Nb6 {[%clk 0:02:42]} 8. Nc3 {[%clk 0:02:53]}  Nc6 {[%clk 0:02:41]} 9. Be3 {[%clk 0:02:51]}  Be7 {[%clk 0:02:32]} 10. Be2 {[%clk 0:02:49]}  Bb7 {[%clk 0:02:32]} 11. O-O {[%clk 0:02:49]}  Qd7 {[%clk 0:02:32]} 12. Qc1 {[%clk 0:02:48]}  Nb4 {[%clk 0:02:30]} 13. Rd1 {[%clk 0:02:47]}  Rd8 {[%clk 0:02:27]} 14. Nd2 {[%clk 0:02:28]}  O-O {[%clk 0:02:16]} 15. Nde4 {[%clk 0:02:17]}  Na4 {[%clk 0:01:35]} 16. f3 {[%clk 0:02:04]}  Nb6 {[%clk 0:01:30]} 17. Nc5 {[%clk 0:01:58]}  Qc6 {[%clk 0:01:27]} 18. Nxb7 {[%clk 0:01:51]}  Qxb7 {[%clk 0:01:28]} 19. a3 {[%clk 0:01:47]}  N4d5 {[%clk 0:01:24]} 20. Nxd5 {[%clk 0:01:47]}  Qxd5 {[%clk 0:01:18]} 21. Qc2 {[%clk 0:01:43]}  c5 {[%clk 0:01:17]} 22. f4 {[%clk 0:01:33]}  cxd4 {[%clk 0:01:14]} 23. Rxd4 {[%clk 0:01:32]}  Qb5 {[%clk 0:01:13]} 24. a4 {[%clk 0:01:20]}  Qb4 {[%clk 0:01:08]} 25. a5 {[%clk 0:01:15]}  Nd5 {[%clk 0:01:07]} 26. Bf2 {[%clk 0:01:04]}  Bc5 {[%clk 0:01:04]} 27. Rxc4 {[%clk 0:01:03]}  Bxf2+ {[%clk 0:01:02]} 28. Kxf2 {[%clk 0:01:04]}  Qb8 {[%clk 0:00:58]} 29. g3 {[%clk 0:00:57]}  f6 {[%clk 0:00:57]} 30. exf6 {[%clk 0:00:51]}  Rxf6 {[%clk 0:00:58]} 31. Bf3 {[%clk 0:00:50]}  Nb4 {[%clk 0:00:53]} 32. Qe2 {[%clk 0:00:44]}  Nd3+ {[%clk 0:00:50]} 33. Kg2 {[%clk 0:00:44]}  Qb3 {[%clk 0:00:39]} 34. Rc3 {[%clk 0:00:35]}  Qb5 {[%clk 0:00:36]} 35. Rd1 {[%clk 0:00:32]}  Nxf4+ {[%clk 0:00:28]} 36. gxf4 {[%clk 0:00:30]}  Rg6+ {[%clk 0:00:28]} 37. Kh1 {[%clk 0:00:26]}  Rxd1+ {[%clk 0:00:26]} 38. Qxd1 {[%clk 0:00:25]}  h5 {[%clk 0:00:22]} 39. Qe2 {[%clk 0:00:16]}  Qxa5 {[%clk 0:00:17]} 40. Rc1 {[%clk 0:00:12]}  h4 {[%clk 0:00:15]} 41. Rg1 {[%clk 0:00:12]}  Rf6 {[%clk 0:00:11]} 42. Rd1 {[%clk 0:00:11]}  h3 {[%clk 0:00:10]} 43. Qd2 {[%clk 0:00:08]}  Qb5 {[%clk 0:00:07]} 44. Be4 {[%clk 0:00:09]}  g6 {[%clk 0:00:06]} 45. Qd8+ {[%clk 0:00:08]}  Rf8 {[%clk 0:00:06]} 46. Qd3 {[%clk 0:00:07]}  Qxb2 {[%clk 0:00:05]} 47. Qxh3 {[%clk 0:00:07]}  Kg7 {[%clk 0:00:03]} 48. Qxe6 {[%clk 0:00:07]}  Rf6 {[%clk 0:00:03]} 49. Qe5 {[%clk 0:00:07]}  Qxe5 {[%clk 0:00:02]} 50. fxe5 {[%clk 0:00:07]}  Re6 {[%clk 0:00:03]} 51. Rd5 {[%clk 0:00:07]}  a5 {[%clk 0:00:03]} 52. Rxa5 {[%clk 0:00:08]}  g5 {[%clk 0:00:03]} 53. Kg2 {[%clk 0:00:08]}  Rb6 {[%clk 0:00:03]} 54. Kg3 {[%clk 0:00:09]}  Rb4 {[%clk 0:00:03]} 55. Kg4 {[%clk 0:00:10]}  Rxe4+ {[%clk 0:00:03]} 56. Kf5 {[%clk 0:00:10]}  Re2 {[%clk 0:00:03]} 57. Ra7+ {[%clk 0:00:11]}  Kf8 {[%clk 0:00:03]} 58. Kf6 {[%clk 0:00:11]}  Ke8 {[%clk 0:00:02]} 59. Ke6 {[%clk 0:00:12]}  Kd8 {[%clk 0:00:02]} 60. Ra8+ {[%clk 0:00:12]}  Kc7 {[%clk 0:00:02]} 61. Rg8 {[%clk 0:00:12]}  Rg2 {[%clk 0:00:01]} 62. Rg7+ {[%clk 0:00:13]}  Kd8 {[%clk 0:00:01]} 63. h4 {[%clk 0:00:14]}  g4 {[%clk 0:00:01]} 64. h5 {[%clk 0:00:13]}  g3 {[%clk 0:00:01]} 65. h6 {[%clk 0:00:14]}  Rh2 {[%clk 0:00:02]} 66. h7 {[%clk 0:00:14]}  Rh6+ {[%clk 0:00:02]} 67. Kd5 {[%clk 0:00:13]}  g2 {[%clk 0:00:03]} 68. Rg8+ {[%clk 0:00:13]}  Ke7 {[%clk 0:00:04]} 69. h8=Q {[%clk 0:00:12]}  Rxh8 {[%clk 0:00:05]} 70. Rg7+ {[%clk 0:00:12]}  Kf8 {[%clk 0:00:04]} 71. Rxg2 {[%clk 0:00:13]}  Ke7 {[%clk 0:00:05]} 72. Rg7+ {[%clk 0:00:11]}  Kf8 {[%clk 0:00:04]} 73. Ra7 {[%clk 0:00:12]}  Rh1 {[%clk 0:00:04]} 74. Ke6 {[%clk 0:00:11]}  Rh6+ {[%clk 0:00:04]} 75. Kf5 {[%clk 0:00:11]}  Ke8 {[%clk 0:00:04]} 76. e6 {[%clk 0:00:11]}  Rh1 {[%clk 0:00:04]} 77. Ra8+ {[%clk 0:00:11]}  Ke7 {[%clk 0:00:04]} 78. Ra7+ {[%clk 0:00:11]}  Ke8 {[%clk 0:00:04]} 79. Kf6 {[%clk 0:00:11]}  Rf1+ {[%clk 0:00:05]} 80. Ke5 {[%clk 0:00:12]}  Re1+ {[%clk 0:00:05]} 81. Kd5 {[%clk 0:00:13]}  Rd1+ {[%clk 0:00:05]} 82. Ke4 {[%clk 0:00:14]}  Re1+ {[%clk 0:00:05]} 83. Kf5 {[%clk 0:00:15]}  Rf1+ {[%clk 0:00:05]} 84. Ke5 {[%clk 0:00:16]}  Re1+ {[%clk 0:00:05]} 85. Kf6 {[%clk 0:00:16]}  Rf1+ {[%clk 0:00:06]} 86. Ke5 {[%clk 0:00:17]} 1/2-1/2


[Site "https://www.chess.com"]

[Event "Titled Tuesday Blitz May 24 Late 2022"]
[White "Dobre, Claudiu-Cristian"]
[Black "Shapiro, Daniel"]
[WhiteFideId "1211854"]
[BlackFideId "2001780"]
[WhiteElo "2207"]
[BlackElo "2275"]
[Result "0-1"]
[Round "08"]
[TimeControl "180+1"]
[Date "2022.05.25"]
[WhiteClock "0:00:01"]
[BlackClock "0:00:10"]

1. c4 {[%clk 0:03:00]}  e5 {[%clk 0:02:57]} 2. Nc3 {[%clk 0:03:00]}  Nf6 {[%clk 0:02:56]} 3. Nf3 {[%clk 0:03:00]}  d6 {[%clk 0:02:50]} 4. e3 {[%clk 0:02:59]}  c6 {[%clk 0:02:33]} 5. d4 {[%clk 0:02:59]}  e4 {[%clk 0:02:28]} 6. Nd2 {[%clk 0:02:57]}  d5 {[%clk 0:02:29]} 7. Qb3 {[%clk 0:02:54]}  Be7 {[%clk 0:02:22]} 8. Be2 {[%clk 0:02:54]}  O-O {[%clk 0:02:22]} 9. O-O {[%clk 0:02:54]}  dxc4 {[%clk 0:02:12]} 10. Nxc4 {[%clk 0:02:53]}  b6 {[%clk 0:02:04]} 11. Qc2 {[%clk 0:02:48]}  Bf5 {[%clk 0:01:47]} 12. Nd2 {[%clk 0:02:44]}  Re8 {[%clk 0:01:38]} 13. Ndxe4 {[%clk 0:02:42]}  Nxe4 {[%clk 0:01:38]} 14. Nxe4 {[%clk 0:02:41]}  Bf8 {[%clk 0:01:38]} 15. Bd3 {[%clk 0:02:40]}  Bg6 {[%clk 0:01:22]} 16. Nc3 {[%clk 0:02:36]}  Nd7 {[%clk 0:01:18]} 17. Bxg6 {[%clk 0:02:31]}  hxg6 {[%clk 0:01:19]} 18. e4 {[%clk 0:02:31]}  Rc8 {[%clk 0:01:11]} 19. Be3 {[%clk 0:02:29]}  c5 {[%clk 0:01:09]} 20. Rad1 {[%clk 0:02:17]}  Qh4 {[%clk 0:01:03]} 21. dxc5 {[%clk 0:02:08]}  Nxc5 {[%clk 0:01:02]} 22. f3 {[%clk 0:02:01]}  g5 {[%clk 0:00:45]} 23. Qd2 {[%clk 0:01:48]}  g4 {[%clk 0:00:33]} 24. Qf2 {[%clk 0:01:17]}  Qh5 {[%clk 0:00:30]} 25. fxg4 {[%clk 0:01:16]}  Qg6 {[%clk 0:00:29]} 26. Qf5 {[%clk 0:01:03]}  Nxe4 {[%clk 0:00:26]} 27. Qxg6 {[%clk 0:01:01]}  fxg6 {[%clk 0:00:25]} 28. Nd5 {[%clk 0:00:58]}  Rc2 {[%clk 0:00:20]} 29. Bd4 {[%clk 0:00:36]}  Rd8 {[%clk 0:00:20]} 30. Ne3 {[%clk 0:00:19]}  Re2 {[%clk 0:00:17]} 31. Rfe1 {[%clk 0:00:12]}  Rxe1+ {[%clk 0:00:17]} 32. Rxe1 {[%clk 0:00:11]}  Rxd4 {[%clk 0:00:18]} 33. Nc2 {[%clk 0:00:12]}  Rd2 {[%clk 0:00:17]} 34. Rxe4 {[%clk 0:00:09]}  Rxc2 {[%clk 0:00:17]} 35. b4 {[%clk 0:00:09]}  a5 {[%clk 0:00:15]} 36. bxa5 {[%clk 0:00:08]}  Bc5+ {[%clk 0:00:14]} 37. Kf1 {[%clk 0:00:08]}  bxa5 {[%clk 0:00:14]} 38. g5 {[%clk 0:00:06]}  a4 {[%clk 0:00:13]} 39. Re6 {[%clk 0:00:03]}  Kf7 {[%clk 0:00:11]} 40. Ra6 {[%clk 0:00:03]}  a3 {[%clk 0:00:11]} 41. g3 {[%clk 0:00:01]}  Bb4 {[%clk 0:00:10]} 0-1


[Site "https://www.chess.com"]

[Event "Titled Tuesday Blitz May 24 Late 2022"]
[White "Estrada Nieto, Julian"]
[Black "Huber, Benedikt"]
[WhiteFideId "5101018"]
[BlackFideId "12923583"]
[WhiteElo "2252"]
[BlackElo "1979"]
[Result "0-1"]
[Round "08"]
[TimeControl "180+1"]
[Date "2022.05.25"]
[WhiteClock "0:00:01"]
[BlackClock "0:00:15"]

1. e4 {[%clk 0:03:00]}  c5 {[%clk 0:02:58]} 2. Nf3 {[%clk 0:03:00]}  e6 {[%clk 0:02:54]} 3. c3 {[%clk 0:03:00]}  Nf6 {[%clk 0:02:53]} 4. e5 {[%clk 0:03:00]}  Nd5 {[%clk 0:02:54]} 5. Bc4 {[%clk 0:03:00]}  d6 {[%clk 0:02:53]} 6. d4 {[%clk 0:03:00]}  cxd4 {[%clk 0:02:53]} 7. cxd4 {[%clk 0:03:00]}  Be7 {[%clk 0:02:51]} 8. O-O {[%clk 0:03:00]}  O-O {[%clk 0:02:50]} 9. Qe2 {[%clk 0:02:59]}  b6 {[%clk 0:02:50]} 10. Nc3 {[%clk 0:02:45]}  Nxc3 {[%clk 0:02:48]} 11. bxc3 {[%clk 0:02:45]}  Bb7 {[%clk 0:02:46]} 12. Rd1 {[%clk 0:02:37]}  Nd7 {[%clk 0:02:45]} 13. Bf4 {[%clk 0:02:26]}  dxe5 {[%clk 0:02:42]} 14. dxe5 {[%clk 0:02:16]}  Qc7 {[%clk 0:02:40]} 15. Nd4 {[%clk 0:02:05]}  Rfd8 {[%clk 0:02:35]} 16. Rac1 {[%clk 0:01:36]}  a6 {[%clk 0:02:20]} 17. Bd3 {[%clk 0:01:34]}  Nc5 {[%clk 0:02:04]} 18. Bb1 {[%clk 0:01:30]}  Rd7 {[%clk 0:02:01]} 19. Qg4 {[%clk 0:01:25]}  Rad8 {[%clk 0:01:51]} 20. h4 {[%clk 0:01:22]}  Bf8 {[%clk 0:01:38]} 21. Bg5 {[%clk 0:01:13]}  Rc8 {[%clk 0:01:27]} 22. h5 {[%clk 0:01:13]}  Qxe5 {[%clk 0:01:18]} 23. Re1 {[%clk 0:01:05]}  Qd5 {[%clk 0:01:11]} 24. Nf3 {[%clk 0:00:44]}  f5 {[%clk 0:01:07]} 25. Qg3 {[%clk 0:00:31]}  Bd6 {[%clk 0:01:01]} 26. Bf4 {[%clk 0:00:30]}  h6 {[%clk 0:00:38]} 27. Bxd6 {[%clk 0:00:21]}  Qxd6 {[%clk 0:00:38]} 28. Ne5 {[%clk 0:00:20]}  Rdc7 {[%clk 0:00:27]} 29. Rcd1 {[%clk 0:00:16]}  Qf8 {[%clk 0:00:21]} 30. Qg6 {[%clk 0:00:12]}  Qf6 {[%clk 0:00:19]} 31. Qg3 {[%clk 0:00:11]}  Be4 {[%clk 0:00:18]} 32. Nc4 {[%clk 0:00:06]}  Bxb1 {[%clk 0:00:16]} 33. Rxb1 {[%clk 0:00:06]}  Ne4 {[%clk 0:00:16]} 34. Nd6 {[%clk 0:00:05]}  Nxg3 {[%clk 0:00:15]} 35. Nxc8 {[%clk 0:00:03]}  Rxc8 {[%clk 0:00:15]} 36. fxg3 {[%clk 0:00:03]}  Qxc3 {[%clk 0:00:15]} 37. Rxb6 {[%clk 0:00:02]}  Qc5+ {[%clk 0:00:15]} 38. Kh2 {[%clk 0:00:01]}  Qxb6 {[%clk 0:00:16]} 39. Rd1 {[%clk 0:00:01]}  Rc2 {[%clk 0:00:16]} 40. Rd7 {[%clk 0:00:01]}  Qc6 {[%clk 0:00:15]} 0-1


[Site "https://www.chess.com"]

[Event "Titled Tuesday Blitz May 24 Late 2022"]
[White "Gomez Dieguez, David"]
[Black "Dahlgren, James Allen"]
[WhiteFideId "22223630"]
[BlackFideId "22256873"]
[WhiteElo "2115"]
[BlackElo "2070"]
[Result "1-0"]
[Round "08"]
[TimeControl "180+1"]
[Date "2022.05.25"]
[WhiteClock "0:02:28"]
[BlackClock "0:02:25"]

1. c4 {[%clk 0:03:00]}  e6 {[%clk 0:02:59]} 2. Nf3 {[%clk 0:03:00]}  d5 {[%clk 0:02:59]} 3. e3 {[%clk 0:03:00]}  Nf6 {[%clk 0:03:00]} 4. Nc3 {[%clk 0:03:00]}  c5 {[%clk 0:02:55]} 5. cxd5 {[%clk 0:03:00]}  exd5 {[%clk 0:02:55]} 6. d4 {[%clk 0:03:00]}  Be6 {[%clk 0:02:55]} 7. Bb5+ {[%clk 0:02:59]}  Nc6 {[%clk 0:02:55]} 8. O-O {[%clk 0:02:58]}  Be7 {[%clk 0:02:53]} 9. b3 {[%clk 0:02:58]}  O-O {[%clk 0:02:45]} 10. dxc5 {[%clk 0:02:58]}  Bxc5 {[%clk 0:02:43]} 11. Bb2 {[%clk 0:02:58]}  h6 {[%clk 0:02:42]} 12. Rc1 {[%clk 0:02:58]}  Qd6 {[%clk 0:02:38]} 13. h3 {[%clk 0:02:54]}  Rad8 {[%clk 0:02:37]} 14. Ne2 {[%clk 0:02:53]}  a6 {[%clk 0:02:36]} 15. Bxf6 {[%clk 0:02:46]}  gxf6 {[%clk 0:02:36]} 16. Bd3 {[%clk 0:02:46]}  Ne5 {[%clk 0:02:36]} 17. Nfd4 {[%clk 0:02:37]}  Nxd3 {[%clk 0:02:29]} 18. Qxd3 {[%clk 0:02:38]}  Qe5 {[%clk 0:02:25]} 19. Rxc5 {[%clk 0:02:28]} 1-0


[Site "https://www.chess.com"]

[Event "Titled Tuesday Blitz May 24 Late 2022"]
[White "Grischuk, Alexander"]
[Black "Bortnyk, Olexandr"]
[WhiteFideId "4126025"]
[BlackFideId "14120828"]
[WhiteElo "2762"]
[BlackElo "2723"]
[Result "1-0"]
[Round "08"]
[TimeControl "180+1"]
[Date "2022.05.24"]
[WhiteClock "0:00:21"]
[BlackClock "0:00:07"]

1. d4 {[%clk 0:03:00]}  d6 {[%clk 0:02:55]} 2. e4 {[%clk 0:02:56]}  Nf6 {[%clk 0:02:55]} 3. Nc3 {[%clk 0:02:55]}  e5 {[%clk 0:02:55]} 4. Nf3 {[%clk 0:02:53]}  Nbd7 {[%clk 0:02:55]} 5. h3 {[%clk 0:02:49]}  c6 {[%clk 0:02:47]} 6. a4 {[%clk 0:02:48]}  d5 {[%clk 0:02:43]} 7. exd5 {[%clk 0:02:37]}  e4 {[%clk 0:02:44]} 8. dxc6 {[%clk 0:02:36]}  bxc6 {[%clk 0:02:44]} 9. Ne5 {[%clk 0:02:28]}  Qc7 {[%clk 0:02:40]} 10. Nxd7 {[%clk 0:01:59]}  Bxd7 {[%clk 0:02:41]} 11. Bc4 {[%clk 0:01:59]}  Bb4 {[%clk 0:02:22]} 12. O-O {[%clk 0:01:57]}  O-O {[%clk 0:02:22]} 13. Bg5 {[%clk 0:01:55]}  Bxc3 {[%clk 0:02:20]} 14. bxc3 {[%clk 0:01:56]}  Nd5 {[%clk 0:02:21]} 15. Qd2 {[%clk 0:01:34]}  Qa5 {[%clk 0:02:20]} 16. Rfe1 {[%clk 0:01:23]}  Rfe8 {[%clk 0:02:15]} 17. Bb3 {[%clk 0:01:19]}  Qxc3 {[%clk 0:01:29]} 18. Bxd5 {[%clk 0:01:18]}  Qxd2 {[%clk 0:01:28]} 19. Bxf7+ {[%clk 0:01:19]}  Kxf7 {[%clk 0:01:28]} 20. Bxd2 {[%clk 0:01:19]}  Rab8 {[%clk 0:01:26]} 21. Rab1 {[%clk 0:01:17]}  Rb6 {[%clk 0:01:20]} 22. a5 {[%clk 0:01:16]}  Rxb1 {[%clk 0:01:02]} 23. Rxb1 {[%clk 0:01:17]}  Ke6 {[%clk 0:01:03]} 24. Rb7 {[%clk 0:01:15]}  Ra8 {[%clk 0:01:03]} 25. c4 {[%clk 0:01:05]}  h6 {[%clk 0:01:02]} 26. d5+ {[%clk 0:01:02]}  cxd5 {[%clk 0:00:59]} 27. cxd5+ {[%clk 0:01:03]}  Ke7 {[%clk 0:00:58]} 28. a6 {[%clk 0:00:57]}  Ke8 {[%clk 0:00:56]} 29. h4 {[%clk 0:00:55]}  h5 {[%clk 0:00:50]} 30. Be3 {[%clk 0:00:49]}  Bc8 {[%clk 0:00:29]} 31. Bxa7 {[%clk 0:00:47]}  g6 {[%clk 0:00:19]} 32. d6 {[%clk 0:00:45]}  Bd7 {[%clk 0:00:12]} 33. Rb8+ {[%clk 0:00:33]}  Rxb8 {[%clk 0:00:12]} 34. Bxb8 {[%clk 0:00:34]}  Bc6 {[%clk 0:00:11]} 35. Kh2 {[%clk 0:00:32]}  Kd7 {[%clk 0:00:11]} 36. Kg3 {[%clk 0:00:32]}  Kc8 {[%clk 0:00:09]} 37. a7 {[%clk 0:00:30]}  Kd7 {[%clk 0:00:06]} 38. Kf4 {[%clk 0:00:29]}  Ke6 {[%clk 0:00:07]} 39. Kg5 {[%clk 0:00:29]}  e3 {[%clk 0:00:06]} 40. fxe3 {[%clk 0:00:29]}  Bxg2 {[%clk 0:00:07]} 41. Kxg6 {[%clk 0:00:27]}  Bf3 {[%clk 0:00:08]} 42. Kg5 {[%clk 0:00:21]}  Kd7 {[%clk 0:00:07]} 43. Kf5 {[%clk 0:00:21]} 1-0


[Site "https://www.chess.com"]

[Event "Titled Tuesday Blitz May 24 Late 2022"]
[White "Gross, Nicholas"]
[Black "Milchev, Nikolay"]
[WhiteFideId "30921961"]
[BlackFideId "2906090"]
[WhiteElo "1958"]
[BlackElo "2449"]
[Result "1-0"]
[Round "08"]
[TimeControl "180+1"]
[Date "2022.05.25"]
[WhiteClock "0:00:52"]
[BlackClock "0:01:37"]

1. c4 {[%clk 0:03:00]}  e5 {[%clk 0:02:58]} 2. Nc3 {[%clk 0:03:00]}  Nc6 {[%clk 0:02:58]} 3. Nf3 {[%clk 0:03:00]}  g6 {[%clk 0:02:58]} 4. d4 {[%clk 0:03:00]}  exd4 {[%clk 0:02:58]} 5. Nxd4 {[%clk 0:03:01]}  Bg7 {[%clk 0:02:59]} 6. Nxc6 {[%clk 0:02:55]}  bxc6 {[%clk 0:02:59]} 7. g3 {[%clk 0:02:55]}  d6 {[%clk 0:02:59]} 8. Bg2 {[%clk 0:02:55]}  Bd7 {[%clk 0:02:59]} 9. Qd2 {[%clk 0:02:55]}  Ne7 {[%clk 0:02:58]} 10. b3 {[%clk 0:02:56]}  a5 {[%clk 0:02:57]} 11. Bb2 {[%clk 0:02:55]}  O-O {[%clk 0:02:58]} 12. O-O {[%clk 0:02:55]}  Qb8 {[%clk 0:02:52]} 13. Rab1 {[%clk 0:02:53]}  Re8 {[%clk 0:02:49]} 14. h3 {[%clk 0:02:47]}  Qb4 {[%clk 0:02:49]} 15. Rfd1 {[%clk 0:02:46]}  Bf5 {[%clk 0:02:42]} 16. Rbc1 {[%clk 0:02:45]}  Rab8 {[%clk 0:02:36]} 17. Kh2 {[%clk 0:02:37]}  h5 {[%clk 0:02:35]} 18. e4 {[%clk 0:02:28]}  Be6 {[%clk 0:02:33]} 19. Na4 {[%clk 0:02:15]}  Qxd2 {[%clk 0:02:27]} 20. Rxd2 {[%clk 0:02:15]}  c5 {[%clk 0:02:21]} 21. Bxg7 {[%clk 0:02:10]}  Kxg7 {[%clk 0:02:22]} 22. Nc3 {[%clk 0:02:04]}  Nc6 {[%clk 0:02:22]} 23. f4 {[%clk 0:01:55]}  Nd4 {[%clk 0:02:20]} 24. Rcd1 {[%clk 0:01:54]}  f5 {[%clk 0:02:08]} 25. Kg1 {[%clk 0:01:44]}  fxe4 {[%clk 0:02:04]} 26. Nxe4 {[%clk 0:01:44]}  a4 {[%clk 0:02:03]} 27. bxa4 {[%clk 0:01:38]}  Rb4 {[%clk 0:02:01]} 28. Ng5 {[%clk 0:01:17]}  Bxc4 {[%clk 0:01:57]} 29. Kf2 {[%clk 0:01:14]}  Rxa4 {[%clk 0:01:57]} 30. Rb1 {[%clk 0:01:06]}  Rxa2 {[%clk 0:01:53]} 31. Rxa2 {[%clk 0:01:05]}  Bxa2 {[%clk 0:01:54]} 32. Rb7 {[%clk 0:01:05]}  Re2+ {[%clk 0:01:53]} 33. Kg1 {[%clk 0:01:05]}  Re7 {[%clk 0:01:54]} 34. Ne4 {[%clk 0:01:03]}  Bd5 {[%clk 0:01:47]} 35. Nxd6 {[%clk 0:00:59]}  Bxg2 {[%clk 0:01:47]} 36. Kxg2 {[%clk 0:00:58]}  Kf6 {[%clk 0:01:42]} 37. Nc4 {[%clk 0:00:57]}  Re2+ {[%clk 0:01:42]} 38. Kf1 {[%clk 0:00:56]}  Rc2 {[%clk 0:01:39]} 39. Ne3 {[%clk 0:00:51]}  Rc3 {[%clk 0:01:39]} 40. Nd5+ {[%clk 0:00:51]}  Ke6 {[%clk 0:01:37]} 41. Nxc3 {[%clk 0:00:52]} 1-0


[Site "https://www.chess.com"]

[Event "Titled Tuesday Blitz May 24 Late 2022"]
[White "Ivanisevic, Ivan"]
[Black "Maghsoodloo, Parham"]
[WhiteFideId "912417"]
[BlackFideId "12539929"]
[WhiteElo "2495"]
[BlackElo "2630"]
[Result "1-0"]
[Round "08"]
[TimeControl "180+1"]
[Date "2022.05.24"]
[WhiteClock "0:00:02"]
[BlackClock "0:00:01"]

1. d4 {[%clk 0:02:48]}  Nf6 {[%clk 0:02:59]} 2. c4 {[%clk 0:02:47]}  e6 {[%clk 0:03:00]} 3. g3 {[%clk 0:02:47]}  d5 {[%clk 0:02:59]} 4. Bg2 {[%clk 0:02:47]}  Be7 {[%clk 0:03:00]} 5. Nf3 {[%clk 0:02:47]}  O-O {[%clk 0:03:00]} 6. O-O {[%clk 0:02:48]}  Nbd7 {[%clk 0:02:59]} 7. Nc3 {[%clk 0:02:47]}  c6 {[%clk 0:03:00]} 8. b3 {[%clk 0:02:47]}  b6 {[%clk 0:02:57]} 9. Nd2 {[%clk 0:02:48]}  Bb7 {[%clk 0:02:45]} 10. e4 {[%clk 0:02:48]}  Rc8 {[%clk 0:02:44]} 11. Re1 {[%clk 0:02:45]}  a6 {[%clk 0:02:29]} 12. Bb2 {[%clk 0:02:42]}  b5 {[%clk 0:02:28]} 13. c5 {[%clk 0:02:35]}  b4 {[%clk 0:02:28]} 14. Na4 {[%clk 0:02:31]}  a5 {[%clk 0:02:27]} 15. e5 {[%clk 0:02:24]}  Ne8 {[%clk 0:02:21]} 16. f4 {[%clk 0:02:24]}  Ba6 {[%clk 0:02:19]} 17. Bf1 {[%clk 0:02:22]}  Bb5 {[%clk 0:02:15]} 18. Nf3 {[%clk 0:02:18]}  Nc7 {[%clk 0:02:13]} 19. Bd3 {[%clk 0:02:11]}  Re8 {[%clk 0:02:05]} 20. a3 {[%clk 0:02:04]}  Rb8 {[%clk 0:01:56]} 21. axb4 {[%clk 0:02:02]}  axb4 {[%clk 0:01:54]} 22. g4 {[%clk 0:01:43]}  f6 {[%clk 0:01:51]} 23. exf6 {[%clk 0:01:32]}  Nxf6 {[%clk 0:01:51]} 24. Ne5 {[%clk 0:01:27]}  Ne4 {[%clk 0:01:39]} 25. Nb6 {[%clk 0:01:20]}  Nxc5 {[%clk 0:01:23]} 26. dxc5 {[%clk 0:01:02]}  Bxc5+ {[%clk 0:01:22]} 27. Kg2 {[%clk 0:01:03]}  Rxb6 {[%clk 0:01:22]} 28. Bxh7+ {[%clk 0:00:59]}  Kxh7 {[%clk 0:01:22]} 29. Qc2+ {[%clk 0:00:59]}  Kg8 {[%clk 0:01:20]} 30. Qxc5 {[%clk 0:00:59]}  Na6 {[%clk 0:01:13]} 31. Qf2 {[%clk 0:00:53]}  c5 {[%clk 0:01:13]} 32. g5 {[%clk 0:00:52]}  d4 {[%clk 0:01:09]} 33. Qh4 {[%clk 0:00:50]}  Rf8 {[%clk 0:00:58]} 34. Ng6 {[%clk 0:00:32]}  Kf7 {[%clk 0:00:13]} 35. f5 {[%clk 0:00:30]}  Qd5+ {[%clk 0:00:11]} 36. Kg1 {[%clk 0:00:30]}  Re8 {[%clk 0:00:09]} 37. Ne5+ {[%clk 0:00:26]}  Ke7 {[%clk 0:00:09]} 38. f6+ {[%clk 0:00:22]}  gxf6 {[%clk 0:00:08]} 39. gxf6+ {[%clk 0:00:23]}  Kd6 {[%clk 0:00:08]} 40. f7 {[%clk 0:00:23]}  Rf8 {[%clk 0:00:08]} 41. Qf4 {[%clk 0:00:20]}  Rbb8 {[%clk 0:00:08]} 42. Ng6+ {[%clk 0:00:12]}  Kd7 {[%clk 0:00:05]} 43. Re5 {[%clk 0:00:11]}  Qd6 {[%clk 0:00:05]} 44. Rae1 {[%clk 0:00:09]}  Nc7 {[%clk 0:00:05]} 45. Qf6 {[%clk 0:00:08]}  d3 {[%clk 0:00:04]} 46. Nxf8+ {[%clk 0:00:08]}  Rxf8 {[%clk 0:00:04]} 47. Rg5 {[%clk 0:00:07]}  d2 {[%clk 0:00:02]} 48. Rd1 {[%clk 0:00:07]}  Be2 {[%clk 0:00:03]} 49. Be5 {[%clk 0:00:06]}  Qd3 {[%clk 0:00:02]} 50. Bxc7 {[%clk 0:00:04]}  Bxd1 {[%clk 0:00:03]} 51. Bd8 {[%clk 0:00:02]}  Bxb3 {[%clk 0:00:02]} 52. Qe7+ {[%clk 0:00:03]}  Kc6 {[%clk 0:00:03]} 53. Qxc5+ {[%clk 0:00:01]}  Kd7 {[%clk 0:00:01]} 54. Qc7# {[%clk 0:00:02]} 1-0


[Site "https://www.chess.com"]